bitfinex/quotes_SOLUSD_20241208
["timestamp","ask_amount","ask_price","bid_price","bid_amount"]
[1733676699642,2.1173,236.14,236.04,1.571]
[1733676699837,23.776884,236.13,236.04,1.571]
[1733676700733,23.776884,236.11,236.04,1.571]
[1733676704362,23.776884,236.15,236.04,1.571]
[1733676704563,2.1172,236.16,236.04,1.571]
[1733676706361,23.776884,236.15,236.04,1.571]
[1733676708255,2.1172,236.16,236.04,1.571]
[1733676709257,2.1172,236.16,236.13,0.12854784]
[1733676709848,8.66135314,236.25,236.13,0.12854784]
[1733676710046,8.66135314,236.25,236.13,6.13984784]
[1733676710047,2.1165,236.24,236.13,6.13984784]
[1733676712164,23.776884,236.23,236.13,6.13984784]
[1733676714252,20.0,236.28,236.13,6.13984784]
[1733676714452,2.1159,236.3,236.13,6.13984784]
[1733676715058,2.1159,236.3,236.14,1.598]
[1733676717174,20.0,236.27,236.14,1.598]
[1733676717348,2.1164,236.25,236.14,1.598]
[1733676718890,20.0,236.27,236.14,1.598]
[1733676719174,2.116,236.29,236.14,1.598]
[1733676720378,20.0,236.31,236.14,1.598]
[1733676720582,23.776884,236.3,236.14,1.598]
[1733676721363,25.892884,236.3,236.14,1.598]
[1733676722163,25.892884,236.3,236.15,6.5231]
[1733676722492,25.892884,236.3,236.16,1.6436]
[1733676722655,2.116,236.3,236.16,1.6436]
[1733676722860,20.0,236.31,236.16,1.6436]
[1733676724292,2.1159,236.31,236.26,0.12854784]
[1733676724661,2.1155,236.35,236.26,0.12854784]
[1733676725502,2.1152,236.39,236.26,0.12854784]
[1733676726267,2.1147,236.43,236.26,0.12854784]
[1733676727474,20.0,236.41,236.26,0.12854784]
[1733676727798,2.115,236.4,236.26,0.12854784]
[1733676728102,20.0,236.36,236.26,0.12854784]
[1733676732499,2.115,236.4,236.27,1.5522]
[1733676732673,2.115,236.4,236.27,21.5522]
[1733676732872,2.115,236.4,236.28,7.6227]
[1733676733291,2.18692222,236.44,236.28,6.0705]
[1733676733463,2.1147,236.44,236.29,1.5522]
[1733676737285,2.1147,236.44,236.3,25.329084]
[1733676737490,2.1143,236.48,236.33,1.5522]
[1733676738396,6.3414,236.54,236.33,1.5522]
[1733676738579,11.63237725,236.54,236.33,1.5522]
[1733676738772,20.0,236.51,236.33,1.5522]
[1733676739209,20.0,236.5,236.41,0.12854784]
[1733676739375,20.0,236.5,236.42,1.5522]
[1733676740581,2.1143,236.49,236.42,1.5522]
[1733676741472,5.29097725,236.53,236.42,1.5522]
[1733676741683,2.1139,236.53,236.42,1.5522]
[1733676748984,0.4885377,236.55,236.42,1.5522]
[1733676749838,2.1138,236.54,236.42,1.5522]
[1733676751619,23.776884,236.53,236.42,1.5522]
[1733676752712,2.1138,236.54,236.42,1.5522]
[1733676753301,0.4885377,236.55,236.42,1.5522]
[1733676753936,0.4885377,236.55,236.43,25.280884]
[1733676754132,0.4885377,236.55,236.46,1.504]
[1733676754320,0.4885377,236.55,236.51,0.12854784]
[1733676755836,0.4885377,236.55,236.52,1.504]
[1733676769753,0.4885377,236.55,236.51,0.12854784]
[1733676778871,8.72990027,236.55,236.51,0.12854784]
[1733676781131,8.24136257,236.52,236.51,0.12854784]
[1733676786505,41.20681285,236.52,236.51,0.12854784]
[1733676788516,2.1138,236.54,236.51,0.12854784]
[1733676788918,8.24136257,236.52,236.51,0.12854784]
[1733676789141,2.1138,236.54,236.51,0.12854784]
[1733676789355,8.24136257,236.52,236.51,0.12854784]
[1733676794654,0.4885377,236.55,236.51,0.12854784]
[1733676794828,8.24136257,236.52,236.51,0.12854784]
[1733676798364,64.98369685,236.52,236.51,0.12854784]
[1733676798576,8.24136257,236.43,236.41,1.5044]
[1733676798723,8.24136257,236.45,236.41,1.5044]
[1733676800947,8.24136257,236.44,236.41,1.5044]
[1733676801124,8.24136257,236.43,236.41,1.5044]
[1733676801547,23.776884,236.51,236.41,1.5044]
[1733676801729,35.07945028,236.52,236.41,1.5044]
[1733676801730,8.24136257,236.44,236.41,1.5044]
[1733676804740,8.24136257,236.43,236.41,1.5044]
[1733676804938,8.24136257,236.42,236.41,1.5044]
[1733676806752,8.24136257,236.42,236.34,7.608]
[1733676806936,8.24136257,236.38,236.34,7.608]
[1733676807573,8.24136257,236.39,236.34,7.608]
[1733676808071,8.24136257,236.36,236.34,7.608]
[1733676808263,8.24136257,236.36,236.34,1.532]
[1733676808846,8.24136257,236.35,236.34,1.532]
[1733676809050,8.24136257,236.35,236.26,1.532]
[1733676809273,8.24136257,236.34,236.27,8.24136257]
[1733676809442,8.24136257,236.33,236.27,8.24136257]
[1733676810166,8.24136257,236.33,236.26,9.77336257]
[1733676810544,8.24136257,236.33,236.29,20.0]
[1733676811650,8.24136257,236.34,236.27,8.24136257]
[1733676811882,8.24136257,236.34,236.3,20.0]
[1733676812571,8.24136257,236.33,236.26,29.77336257]
[1733676812781,8.24136257,236.34,236.27,8.24136257]
[1733676812990,8.24136257,236.34,236.3,20.0]
[1733676813147,8.24136257,236.32,236.3,20.0]
[1733676813550,8.24136257,236.33,236.29,20.0]
[1733676819076,8.24136257,236.31,236.28,20.0]
[1733676819382,8.24136257,236.32,236.28,20.0]
[1733676820358,8.24136257,236.35,236.28,8.24136257]
[1733676820563,8.24136257,236.35,236.26,21.532]
[1733676820564,8.24136257,236.34,236.27,8.24136257]
[1733676820993,8.24136257,236.33,236.27,8.24136257]
[1733676822378,8.24136257,236.32,236.26,29.77336257]
[1733676822976,23.776884,236.39,236.26,29.77336257]
[1733676822977,8.24136257,236.34,236.27,8.24136257]
[1733676823483,8.24136257,236.33,236.26,29.77336257]
[1733676824282,8.24136257,236.31,236.28,20.0]
[1733676824649,8.24136257,236.33,236.27,8.24136257]
[1733676824857,8.24136257,236.33,236.26,29.77336257]
[1733676825397,23.776884,236.4,236.28,8.24136257]
[1733676825683,8.24136257,236.35,236.28,8.24136257]
[1733676826389,8.24136257,236.34,236.28,8.24136257]
[1733676826567,8.24136257,236.33,236.27,8.24136257]
[1733676826984,8.24136257,236.31,236.27,20.0]
[1733676827297,8.24136257,236.34,236.28,8.24136257]
[1733676827592,8.24136257,236.33,236.27,20.0]
[1733676827770,8.24136257,236.32,236.27,20.0]
[1733676828964,8.24136257,236.32,236.26,21.532]
[1733676829299,8.24136257,236.3,236.26,1.532]
[1733676829457,8.24136257,236.29,236.26,1.532]
[1733676832077,8.24136257,236.31,236.26,1.532]
[1733676834668,8.24136257,236.32,236.26,9.77336257]
[1733676834870,8.24136257,236.31,236.26,1.532]
[1733676836893,8.24136257,236.32,236.26,9.77336257]
[1733676837062,8.24136257,236.34,236.28,8.24136257]
[1733676838976,8.24136257,236.35,236.29,8.24136257]
[1733676839174,2.1151,236.4,236.32,8.24136257]
[1733676839413,8.24136257,236.38,236.32,8.24136257]
[1733676840603,8.24136257,236.36,236.29,8.24136257]
[1733676840906,8.24136257,236.35,236.29,8.24136257]
[1733676841491,8.24136257,236.34,236.31,20.0]
[1733676842094,8.24136257,236.34,236.3,20.0]
[1733676842421,8.24136257,236.34,236.31,20.0]
[1733676842912,8.24136257,236.34,236.3,20.0]
[1733676843206,8.24136257,236.34,236.27,8.24136257]
[1733676843810,8.24136257,236.33,236.27,8.24136257]
[1733676844113,8.24136257,236.34,236.27,8.24136257]
[1733676844912,8.24136257,236.35,236.28,8.24136257]
[1733676845703,2.1151,236.4,236.3,8.24136257]
[1733676845893,6.105,236.42,236.35,8.24136257]
[1733676846106,2.1147,236.44,236.35,8.24136257]
[1733676846107,8.24136257,236.41,236.35,8.24136257]
[1733676846617,8.24136257,236.4,236.34,8.24136257]
[1733676846790,2.1147,236.44,236.32,8.24136257]
[1733676846791,8.24136257,236.39,236.32,8.24136257]
[1733676849180,8.24136257,236.39,236.33,8.24136257]
[1733676849380,8.24136257,236.4,236.33,8.24136257]
[1733676849789,8.24136257,236.4,236.34,8.24136257]
[1733676850118,8.24136257,236.41,236.35,8.24136257]
[1733676850288,8.24136257,236.4,236.34,8.24136257]
[1733676851493,8.24136257,236.36,236.28,20.0]
[1733676851693,23.776884,236.43,236.28,20.0]
[1733676851694,8.24136257,236.35,236.28,8.24136257]
[1733676852108,8.24136257,236.33,236.27,8.24136257]
[1733676853511,8.24136257,236.32,236.26,9.77336257]
[1733676855905,8.24136257,236.33,236.27,8.24136257]
[1733676856086,8.24136257,236.35,236.29,8.24136257]
[1733676856281,8.24136257,236.34,236.28,8.24136257]
[1733676856615,2.1152,236.38,236.27,8.24136257]
[1733676856616,8.24136257,236.33,236.27,8.24136257]
[1733676859086,8.24136257,236.3,236.23,0.63469109]
[1733676859301,8.24136257,236.28,236.21,1.5922]
[1733676859487,8.24136257,236.28,236.25,20.0]
[1733676859687,8.24136257,236.29,236.25,20.0]
[1733676859912,2.1155,236.35,236.21,21.5922]
[1733676860087,8.24136257,236.27,236.18,0.63474448]
[1733676860282,8.24136257,236.3,236.23,8.24136257]
[1733676860720,8.24136257,236.31,236.25,8.24136257]
[1733676861284,8.24136257,236.3,236.24,8.24136257]
[1733676861882,8.24136257,236.3,236.23,8.24136257]
[1733676864707,8.24136257,236.27,236.2,28.24136257]
[1733676865130,8.24136257,236.27,236.2,8.24136257]
[1733676865810,8.24136257,236.28,236.21,8.24136257]
[1733676866210,8.24136257,236.27,236.2,8.24136257]
[1733676867000,8.24136257,236.26,236.2,8.24136257]
[1733676867836,8.24136257,236.26,236.19,8.24136257]
[1733676868313,8.24136257,236.24,236.16,1.6171]
[1733676868518,8.24136257,236.24,236.17,8.24136257]
[1733676871314,8.24136257,236.23,236.16,8.24136257]
[1733676871743,8.24136257,236.24,236.17,8.24136257]
[1733676873840,8.24136257,236.23,236.16,8.24136257]
[1733676874540,8.24136257,236.24,236.17,8.24136257]
[1733676874944,8.24136257,236.25,236.18,8.24136257]
[1733676875610,2.116,236.29,236.2,8.24136257]
[1733676875807,8.24136257,236.27,236.2,8.24136257]
[1733676877825,8.24136257,236.26,236.19,8.24136257]
[1733676880544,8.24136257,236.24,236.17,8.24136257]
[1733676880862,2.116,236.29,236.14,20.0]
[1733676880863,8.24136257,236.23,236.14,20.0]
[1733676881026,8.24136257,236.23,236.17,8.24136257]
[1733676881846,8.24136257,236.22,236.15,8.24136257]
[1733676882047,8.24136257,236.21,236.15,8.24136257]
[1733676882555,8.24136257,236.18,236.11,8.24136257]
[1733676882733,8.24136257,236.17,236.1,8.24136257]
[1733676883560,8.24136257,236.16,236.1,8.24136257]
[1733676883730,8.24136257,236.15,236.09,8.24136257]
[1733676884056,23.776884,236.21,236.11,8.24136257]
[1733676884230,8.24136257,236.17,236.11,8.24136257]
[1733676884438,8.24136257,236.17,236.1,8.24136257]
[1733676885020,8.24136257,236.16,236.06,20.0]
[1733676885358,8.24136257,236.16,236.09,8.24136257]
[1733676886236,8.24136257,236.15,236.09,8.24136257]
[1733676888453,8.24136257,236.14,236.07,8.24136257]
[1733676888891,8.24136257,236.11,236.0,7.9165]
[1733676889042,8.24136257,236.11,236.05,8.24136257]
[1733676889341,8.24136257,236.12,236.06,8.24136257]
[1733676890330,8.24136257,236.12,236.03,20.0]
[1733676890501,1.6037,236.17,235.99,11.22859677]
[1733676890502,8.24136257,236.11,236.05,8.24136257]
[1733676896218,8.24136257,236.12,236.06,8.24136257]
[1733676896830,8.24136257,236.13,236.06,8.24136257]
[1733676897769,8.24136257,236.12,236.06,8.24136257]
[1733676899866,2.1172,236.16,236.07,8.24136257]
[1733676899867,8.24136257,236.13,236.07,8.24136257]
[1733676900101,7.6378,236.17,236.09,8.24136257]
[1733676900229,8.24136257,236.16,236.1,8.24136257]
[1733676900429,7.6378,236.17,236.11,8.24136257]
[1733676900750,15.87916257,236.17,236.11,8.24136257]
[1733676903068,23.776884,236.22,236.12,8.24136257]
[1733676903359,8.24136257,236.18,236.12,8.24136257]
[1733676903738,23.776884,236.22,236.14,8.24136257]
[1733676903739,8.24136257,236.2,236.14,8.24136257]
[1733676904467,2.1161,236.28,236.18,8.24136257]
[1733676904628,8.24136257,236.24,236.18,8.24136257]
[1733676909650,23.776884,236.28,236.18,8.24136257]
[1733676909878,8.24136257,236.24,236.18,8.24136257]
[1733676910167,23.776884,236.28,236.22,8.24136257]
[1733676910374,8.24136257,236.29,236.23,8.24136257]
[1733676911777,8.24136257,236.26,236.2,8.24136257]
[1733676912089,8.24136257,236.24,236.19,20.0]
[1733676912505,8.24136257,236.23,236.17,9.82096257]
[1733676912656,8.24136257,236.24,236.17,9.82096257]
[1733676913260,8.24136257,236.25,236.18,8.24136257]
[1733676913466,8.24136257,236.25,236.17,1.5796]
[1733676913467,8.24136257,236.25,236.19,8.24136257]
[1733676914685,8.24136257,236.25,236.18,8.24136257]
[1733676915404,8.24136257,236.26,236.2,8.24136257]
[1733676916684,8.24136257,236.28,236.22,8.24136257]
[1733676916959,8.24136257,236.3,236.23,8.24136257]
[1733676917300,6.4124,236.34,236.23,8.24136257]
[1733676917501,8.24136257,236.3,236.24,8.24136257]
[1733676917787,8.24136257,236.33,236.27,8.24136257]
[1733676918698,8.24136257,236.32,236.26,8.24136257]
[1733676918934,8.24136257,236.31,236.25,8.24136257]
[1733676925311,8.24136257,236.32,236.26,8.24136257]
[1733676925494,8.24136257,236.33,236.27,8.24136257]
[1733676925699,1.5505,236.35,236.28,8.24136257]
[1733676925990,9.79186257,236.35,236.28,8.24136257]
[1733676926310,1.5505,236.35,236.28,8.24136257]
[1733676926513,8.24136257,236.35,236.29,8.24136257]
[1733676928414,8.24136257,236.35,236.28,8.24136257]
[1733676930824,8.24136257,236.34,236.27,8.24136257]
[1733676931195,8.24136257,236.31,236.18,6.1824]
[1733676931387,8.24136257,236.3,236.24,8.24136257]
[1733676931584,8.24136257,236.3,236.18,6.1824]
[1733676931790,8.24136257,236.28,236.18,6.1824]
[1733676932100,8.24136257,236.28,236.21,8.24136257]
[1733676932918,8.24136257,236.25,236.19,8.24136257]
[1733676935615,8.24136257,236.26,236.19,8.24136257]
[1733676936713,8.24136257,236.27,236.2,8.24136257]
[1733676936886,8.24136257,236.26,236.2,8.24136257]
[1733676937221,8.24136257,236.27,236.2,8.24136257]
[1733676938102,8.24136257,236.26,236.19,8.24136257]
[1733676938429,8.24136257,236.27,236.2,8.24136257]
[1733676938938,8.24136257,236.25,236.19,8.24136257]
[1733676939287,8.24136257,236.26,236.19,8.24136257]
[1733676940427,8.24136257,236.26,236.2,8.24136257]
[1733676940787,8.24136257,236.27,236.21,8.24136257]
[1733676941600,8.24136257,236.26,236.2,8.24136257]
[1733676942012,8.24136257,236.26,236.19,8.24136257]
[1733676942729,8.24136257,236.26,236.2,8.24136257]
[1733676944600,8.24136257,236.27,236.2,8.24136257]
[1733676944817,8.24136257,236.26,236.2,8.24136257]
[1733676945024,8.24136257,236.27,236.21,8.24136257]
[1733676945435,8.24136257,236.28,236.21,8.24136257]
[1733676945747,8.24136257,236.27,236.21,8.24136257]
[1733676947849,8.24136257,236.27,236.2,8.24136257]
[1733676949251,8.24136257,236.28,236.21,8.24136257]
[1733676954954,2.1154,236.36,236.21,8.24136257]
[1733676955126,8.24136257,236.27,236.21,8.24136257]
[1733676956468,8.24136257,236.27,236.2,8.24136257]
[1733676959460,20.0,236.32,236.21,8.24136257]
[1733676959638,8.24136257,236.3,236.23,8.24136257]
[1733676960240,20.0,236.32,236.23,8.24136257]
[1733676960560,8.24136257,236.3,236.23,8.24136257]
[1733676960763,8.24136257,236.31,236.25,8.24136257]
[1733676961270,8.24136257,236.31,236.19,6.402]
[1733676961271,20.0,236.32,236.19,6.402]
[1733676961570,8.24136257,236.35,236.28,8.24136257]
[1733676964058,8.24136257,236.32,236.25,1.5345]
[1733676964366,8.24136257,236.32,236.25,9.77586257]
[1733676964564,8.24136257,236.32,236.26,8.24136257]
[1733676964736,0.93,236.29,236.27,8.24136257]
[1733676965055,8.24136257,236.33,236.27,8.24136257]
[1733676965230,8.24136257,236.34,236.28,8.24136257]
[1733676966162,8.24136257,236.35,236.28,8.24136257]
[1733676966363,8.24136257,236.35,236.29,8.24136257]
[1733676966556,8.24136257,236.38,236.31,8.24136257]
[1733676967374,8.24136257,236.37,236.3,8.24136257]
[1733676968043,0.93,236.31,236.3,8.24136257]
[1733676969665,2.1149,236.41,236.3,8.24136257]
[1733676969666,8.24136257,236.38,236.3,8.24136257]
[1733676969834,8.24136257,236.37,236.31,8.24136257]
[1733676970034,0.93,236.32,236.31,8.24136257]
[1733676977263,8.24136257,236.41,236.31,8.24136257]
[1733676977470,8.24136257,236.39,236.33,8.24136257]
[1733676978244,8.24136257,236.38,236.32,8.24136257]
[1733676978868,8.24136257,236.39,236.33,8.24136257]
[1733676981669,8.24136257,236.39,236.32,8.24136257]
[1733676981859,8.24136257,236.37,236.3,28.24136257]
[1733676982170,8.24136257,236.38,236.31,8.24136257]
[1733676983554,8.24136257,236.39,236.32,8.24136257]
[1733676985763,8.24136257,236.38,236.31,8.24136257]
[1733676986075,23.776884,236.42,236.32,8.24136257]
[1733676986384,8.24136257,236.4,236.33,8.24136257]
[1733676989884,8.24136257,236.39,236.32,8.24136257]
[1733676990088,8.24136257,236.38,236.31,9.89226257]
[1733676990667,8.24136257,236.38,236.31,1.6509]
[1733676990870,8.24136257,236.35,236.28,8.24136257]
[1733676991166,8.24136257,236.36,236.29,8.24136257]
[1733676991372,8.24136257,236.35,236.29,8.24136257]
[1733676991769,8.24136257,236.34,236.25,1.6509]
[1733676991977,8.24136257,236.32,236.25,9.89226257]
[1733676992694,0.93,236.3,236.25,9.89226257]
[1733676993102,9.17136257,236.3,236.25,1.6509]
[1733676993307,8.24136257,236.29,236.22,8.24136257]
[1733676994188,9.17136257,236.3,236.24,8.24136257]
[1733676998402,9.17136257,236.3,236.21,6.5793]
[1733676998568,9.17136257,236.3,236.23,8.24136257]
[1733677000064,8.24136257,236.29,236.22,8.24136257]
[1733677001179,8.24136257,236.27,236.2,9.89226257]
[1733677001547,8.24136257,236.28,236.21,8.24136257]
[1733677002100,10.35736257,236.29,236.22,8.24136257]
[1733677002805,10.35736257,236.29,236.2,1.6509]
[1733677002806,8.24136257,236.28,236.21,8.24136257]
[1733677003300,0.93,236.3,236.23,8.24136257]
[1733677003484,9.17136257,236.3,236.24,8.24136257]
[1733677004192,9.17136257,236.3,236.2,1.6509]
[1733677004380,9.17136257,236.3,236.23,8.24136257]
[1733677004575,9.17136257,236.3,236.2,1.6509]
[1733677004769,9.17136257,236.3,236.23,8.24136257]
[1733677006090,8.24136257,236.29,236.22,8.24136257]
[1733677007112,9.17136257,236.3,236.23,8.24136257]
[1733677008117,8.24136257,236.28,236.2,1.6509]
[1733677008412,8.24136257,236.28,236.21,8.24136257]
[1733677008708,8.24136257,236.29,236.22,8.24136257]
[1733677008912,8.24136257,236.29,236.2,1.6509]
[1733677009089,8.24136257,236.28,236.21,8.24136257]
[1733677009817,8.24136257,236.26,236.2,1.6509]
[1733677010109,8.24136257,236.25,236.18,8.24136257]
[1733677010314,8.24136257,236.26,236.19,8.24136257]
[1733677012284,23.776884,236.29,236.21,8.24136257]
[1733677012484,8.24136257,236.29,236.22,8.24136257]
[1733677012793,8.24136257,236.3,236.24,8.24136257]
[1733677013389,8.24136257,236.31,236.24,8.24136257]
[1733677017394,6.6456,236.32,236.24,8.24136257]
[1733677017594,8.24136257,236.31,236.24,8.24136257]
[1733677018690,2.1156,236.34,236.26,8.24136257]
[1733677018691,8.24136257,236.32,236.26,8.24136257]
[1733677019098,8.24136257,236.33,236.26,8.24136257]
[1733677019807,8.0928,236.38,236.29,8.24136257]
[1733677020008,8.24136257,236.36,236.29,8.24136257]
[1733677020418,2.1152,236.38,236.29,8.24136257]
[1733677020618,2.1152,236.38,236.3,8.24136257]
[1733677020833,10.35656257,236.38,236.22,8.74918867]
[1733677021117,8.24136257,236.34,236.28,8.24136257]
[1733677021322,8.24136257,236.33,236.27,8.24136257]
[1733677022185,8.24136257,236.34,236.28,8.24136257]
[1733677022426,2.1153,236.37,236.28,8.24136257]
[1733677022621,8.24136257,236.34,236.28,8.24136257]
[1733677022797,8.24136257,236.33,236.25,20.0]
[1733677022993,8.24136257,236.33,236.27,8.24136257]
[1733677023191,8.24136257,236.33,236.25,20.0]
[1733677023393,8.24136257,236.33,236.27,8.24136257]
[1733677024199,8.24136257,236.31,236.24,8.24136257]
[1733677026615,8.24136257,236.29,236.23,8.24136257]
[1733677026818,23.776884,236.33,236.22,1.6549]
[1733677026819,8.24136257,236.28,236.22,1.6549]
[1733677027896,8.24136257,236.28,236.21,8.24136257]
[1733677028102,8.24136257,236.27,236.2,8.24136257]
[1733677029105,8.24136257,236.25,236.17,1.6585]
[1733677029306,8.24136257,236.25,236.19,8.24136257]
[1733677029504,2.116,236.29,236.19,8.24136257]
[1733677029712,8.24136257,236.27,236.2,8.24136257]
[1733677031237,8.24136257,236.28,236.21,8.24136257]
[1733677032331,8.24136257,236.27,236.2,8.24136257]
[1733677033602,8.24136257,236.27,236.21,8.24136257]
[1733677033809,8.24136257,236.27,236.2,8.24136257]
[1733677036428,8.24136257,236.26,236.19,8.24136257]
[1733677036643,8.24136257,236.25,236.19,8.24136257]
[1733677037649,2.116,236.29,236.17,1.6585]
[1733677037650,8.24136257,236.24,236.18,8.24136257]
[1733677038929,8.24136257,236.23,236.17,8.24136257]
[1733677040016,8.24136257,236.22,236.12,1.6585]
[1733677040223,8.24136257,236.2,236.14,8.24136257]
[1733677040844,8.24136257,236.21,236.15,8.24136257]
[1733677041723,8.24136257,236.2,236.12,1.6585]
[1733677041926,8.24136257,236.2,236.14,8.24136257]
[1733677045173,8.24136257,236.2,236.13,8.24136257]
[1733677046254,8.24136257,236.19,236.13,8.24136257]
[1733677046593,23.776884,236.22,236.13,8.24136257]
[1733677046871,8.24136257,236.19,236.13,8.24136257]
[1733677048753,2.1166,236.23,236.13,8.24136257]
[1733677048961,8.24136257,236.19,236.13,8.24136257]
[1733677052759,8.24136257,236.17,236.07,20.0]
[1733677052967,8.24136257,236.14,236.06,1.6042]
[1733677053160,8.24136257,236.14,236.08,8.24136257]
[1733677053855,8.24136257,236.14,236.06,1.6042]
[1733677054158,8.24136257,236.14,236.08,8.24136257]
[1733677054884,0.93,236.13,236.08,8.24136257]
[1733677055085,0.93,236.13,236.07,28.24136257]
[1733677056256,0.93,236.13,236.08,8.24136257]
[1733677057478,8.24136257,236.14,236.08,8.24136257]
[1733677059605,8.24136257,236.15,236.09,8.24136257]
[1733677059908,8.24136257,236.15,236.07,20.0]
[1733677060109,8.24136257,236.15,236.09,8.24136257]
[1733677060301,8.24136257,236.15,236.08,8.24136257]
[1733677060479,0.93,236.12,236.08,8.24136257]
[1733677064809,0.93,236.12,236.11,8.24136257]
[1733677065211,8.24136257,236.22,236.11,8.24136257]
[1733677065421,2.1164,236.25,236.15,8.24136257]
[1733677065619,8.24136257,236.22,236.15,8.24136257]
[1733677066398,8.24136257,236.21,236.15,8.24136257]
[1733677068322,8.24136257,236.23,236.17,8.24136257]
[1733677068705,8.24136257,236.23,236.1,0.63502993]
[1733677068894,8.24136257,236.21,236.12,20.0]
[1733677069092,8.24136257,236.22,236.16,8.24136257]
[1733677069528,8.24136257,236.23,236.17,8.24136257]
[1733677071100,8.24136257,236.22,236.16,8.24136257]
[1733677072931,8.24136257,236.21,236.14,8.24136257]
[1733677074606,8.24136257,236.2,236.14,8.24136257]
[1733677077225,8.24136257,236.21,236.15,8.24136257]
[1733677079903,8.24136257,236.2,236.14,8.24136257]
[1733677080116,8.24136257,236.19,236.13,9.84276257]
[1733677082239,0.93,236.17,236.13,9.84276257]
[1733677082944,0.93,236.17,236.08,21.6603]
[1733677083143,8.24136257,236.15,236.08,9.90166257]
[1733677083908,0.93,236.17,236.08,1.6603]
[1733677083909,8.24136257,236.14,236.08,1.6603]
[1733677084182,8.24136257,236.13,236.08,1.6603]
[1733677084311,8.24136257,236.14,236.08,1.6603]
[1733677084853,8.24136257,236.13,236.07,20.0]
[1733677086328,8.24136257,236.12,236.04,6.078]
[1733677086528,8.24136257,236.13,236.06,8.24136257]
[1733677086933,23.776884,236.16,236.07,8.24136257]
[1733677087128,8.24136257,236.14,236.08,8.24136257]
[1733677089256,8.24136257,236.13,236.07,8.24136257]
[1733677090955,8.24136257,236.13,236.06,8.24136257]
[1733677091461,8.24136257,236.13,236.04,6.078]
[1733677091962,8.24136257,236.13,236.06,8.24136257]
[1733677093763,8.24136257,236.13,236.04,6.078]
[1733677093931,8.24136257,236.13,236.06,8.24136257]
[1733677095246,8.24136257,236.13,236.04,6.078]
[1733677095480,23.776884,236.16,236.04,8.24136257]
[1733677095481,8.24136257,236.11,236.04,8.24136257]
[1733677096788,8.24136257,236.11,236.03,1.515]
[1733677096789,8.24136257,236.1,236.03,9.75636257]
[1733677097000,8.24136257,236.1,235.98,8.71202194]
[1733677097164,8.24136257,236.09,236.03,8.24136257]
[1733677097365,8.24136257,236.09,235.98,8.0767]
[1733677097566,8.24136257,236.09,236.02,8.24136257]
[1733677098289,8.24136257,236.09,235.98,8.0767]
[1733677098290,8.24136257,236.08,236.01,8.24136257]
[1733677098461,8.24136257,236.08,235.98,1.6445]
[1733677098957,2.1173,236.14,236.0,8.24136257]
[1733677099157,8.24136257,236.06,235.98,1.6445]
[1733677099381,8.24136257,236.05,235.98,9.88586257]
[1733677099579,8.24136257,236.04,235.94,1.72736676]
[1733677099772,8.24136257,236.03,235.97,8.24136257]
[1733677100984,8.24136257,236.04,235.97,8.24136257]
[1733677103810,2.1179,236.08,235.9,1.6445]
[1733677103811,8.24136257,235.99,235.9,1.6445]
[1733677104007,8.24136257,235.98,235.92,8.24136257]
[1733677104216,8.24136257,235.99,235.93,8.24136257]
[1733677104369,8.24136257,236.0,235.94,8.24136257]
[1733677105788,23.776884,236.04,235.94,8.24136257]
[1733677105976,8.24136257,236.01,235.95,8.24136257]
[1733677108178,8.24136257,236.02,235.9,1.6445]
[1733677108380,14.62586257,236.07,236.0,8.24136257]
[1733677108605,14.62586257,236.07,236.01,8.24136257]
[1733677108906,14.62586257,236.07,235.93,0.63552492]
[1733677108907,8.24136257,236.06,236.0,8.24136257]
[1733677110987,8.24136257,236.05,235.99,8.24136257]
[1733677111392,2.1179,236.09,236.01,8.24136257]
[1733677111632,8.24136257,236.07,236.01,8.24136257]
[1733677112813,2.1179,236.09,236.01,8.24136257]
[1733677113114,8.24136257,236.07,236.01,8.24136257]
[1733677113620,8.24136257,236.05,235.99,8.24136257]
[1733677114619,8.24136257,236.06,236.0,8.24136257]
[1733677115299,8.24136257,236.07,236.0,8.24136257]
[1733677115493,2.1179,236.09,235.97,20.0]
[1733677115494,8.24136257,236.09,236.03,8.24136257]
[1733677115696,8.24136257,236.11,236.05,8.24136257]
[1733677115903,8.24136257,236.12,236.06,8.24136257]
[1733677116103,8.24136257,236.12,235.99,21.6146]
[1733677116422,8.24136257,236.11,236.05,8.24136257]
[1733677116915,8.24136257,236.08,235.99,21.6146]
[1733677117222,8.24136257,236.08,236.02,8.24136257]
[1733677120099,8.24136257,236.09,236.02,8.24136257]
[1733677120295,8.24136257,236.1,236.03,8.24136257]
[1733677123529,8.24136257,236.09,236.03,8.24136257]